[Event "Tatra Limba Master 2022"]
[Site "Poronin"]
[Date "2022.01.08"]
[Round "4.6"]
[White "Mroz, Lena"]
[Black "Walkusz, Witoslaw"]
[Result "0-1"]
[ECO "B09"]
[WhiteElo "1835"]
[BlackElo "2024"]
[Annotator "ChessBase"]
[PlyCount "54"]
[EventDate "2022.01.07"]
[EventType "swiss"]
[EventCountry "POL"]
[SourceTitle "playchess.com"]
[Source "ChessBase"]
[SourceQuality "1"]
[TimeControl "5400+30"]

1. e4 {[%emt 0:00:02]} g6 {[%emt 0:00:44]} 2. d4 {[%emt 0:00:13]} d6 {[%emt 0:00:20]} 3. Nc3 {[%emt 0:00:16]} Bg7 {[%emt 0:00:17]} 4. f4 {[%emt 0:00:27]} Nf6 {[%emt 0:01:59]} 5. Nf3 {[%emt 0:00:18]} O-O {[%emt 0:00:09]} 6. e5 {[%emt 0:01:33]} Nfd7 {[%emt 0:00:23]} 7. h4 {[%emt 0:01:15]} c5 {[%emt 0:00:23]} 8. h5 {[%emt 0:01:26]} cxd4 {[%emt 0:00:08]} 9. Qxd4 {[%emt 0:00:26]} dxe5 {[%emt 0:00:11]} 10. Qf2 {[%emt 0:15:02]} exf4 {[%emt 0:02:50]} 11. hxg6 {[%emt 0:00:53]} hxg6 {[%emt 0:00:05]} 12. Bxf4 {[%emt 0:02:18]} Nf6 {[%emt 0:03:32]} 13. Bd3 {[%emt 0:04:52]} Qa5 {[%emt 0:14:59]} 14. O-O-O {[%emt 0:14:59]} Nc6 {[%emt 0:05:19]} 15. Rde1 {[%emt 0:15:05]} Bf5 {[%emt 0:11:23]} 16. Bxf5 {[%emt 0:09:51]} Qxf5 {[%emt 0:00:06]} 17. Bg5 {[%emt 0:15:47]} Rfd8 {[%emt 0:05:07]} 18. Qh4 {[%emt 0:01:38]} Rac8 {[%emt 0:02:54]} 19. Re2 {[%emt 0:06:08]} Rd7 {[%emt 0:13:56]} 20. Rf2 {[%emt 0:02:00]} Ng4 {[%emt 0:08:56]} 21. Rff1 {[%emt 0:03:25]} f6 {[%emt 0:19:12]} 22. Ne5 {[%emt 0:01:50]} Qxe5 {[%emt 0:00:37]} 23. Bf4 {[%emt 0:01:14]} Qe6 {[%emt 0:02:49]} 24. Re1 {[%emt 0:00:19]} Qf5 {[%emt 0:00:30]} 25. Bd2 {[%emt 0:01:01]} Nb4 {[%emt 0:01:01]} 26. Re4 {[%emt 0:00:38]} Rxc3 {[%emt 0:01:44]} 27. Qxg4 {[%emt 0:00:24]} Rxc2+ {[%emt 0:00:22]} 0-1

[Event "Tatra Limba Master 2022"]
[Site "Poronin"]
[Date "2022.01.08"]
[Round "4.7"]
[White "Starosciak, Szymon"]
[Black "Bartoszczuk, Adam"]
[Result "0-1"]
[ECO "B92"]
[WhiteElo "1986"]
[BlackElo "1380"]
[Annotator "ChessBase"]
[PlyCount "114"]
[EventDate "2022.01.07"]
[EventType "swiss"]
[EventCountry "POL"]
[SourceTitle "playchess.com"]
[Source "ChessBase"]
[SourceQuality "1"]
[TimeControl "5400+30"]

1. e4 {[%emt 0:00:05]} c5 {[%emt 0:00:06]} 2. Nf3 {[%emt 0:00:07]} d6 {[%emt 0:00:41]} 3. d4 {[%emt 0:00:09]} cxd4 {[%emt 0:00:05]} 4. Nxd4 {[%emt 0:00:05]} Nf6 {[%emt 0:00:05]} 5. Nc3 {[%emt 0:00:04]} a6 {[%emt 0:00:05]} 6. Be2 {[%emt 0:00:17]} e5 {[%emt 0:00:28]} 7. Nb3 {[%emt 0:00:08]} Be6 {[%emt 0:00:21]} 8. Be3 {[%emt 0:00:18]} Be7 {[%emt 0:00:42]} 9. Nd5 {[%emt 0:01:07]} Bxd5 {[%emt 0:04:32]} 10. exd5 {[%emt 0:00:08]} Nbd7 {[%emt 0:00:58]} 11. O-O {[%emt 0:01:20]} Nb6 {[%emt 0:02:40]} 12. c4 {[%emt 0:01:56]} Rc8 {[%emt 0:02:57]} 13. Rc1 {[%emt 0:01:16]} O-O {[%emt 0:03:25]} 14. Qd2 {[%emt 0:05:45]} Ne4 {[%emt 0:10:17]} 15. Qa5 {[%emt 0:03:26]} Nd7 {[%emt 0:03:48]} 16. Qb4 {[%emt 0:06:12]} b6 {[%emt 0:04:40]} 17. f3 {[%emt 0:05:35]} Nec5 {[%emt 0:01:31]} 18. Qd2 {[%emt 0:01:11]} f5 {[%emt 0:03:24]} 19. Na1 {[%emt 0:00:17]} f4 {[%emt 0:03:28]} 20. Bf2 {[%emt 0:00:14]} e4 {[%emt 0:03:56]} 21. Bd4 {[%emt 0:00:20]} e3 {[%emt 0:01:46]} 22. Qc3 {[%emt 0:03:03]} Bf6 {[%emt 0:01:29]} 23. b4 {[%emt 0:04:06]} Nb7 {[%emt 0:04:45]} 24. Nb3 {[%emt 0:03:45]} Ne5 {[%emt 0:02:58]} 25. Qb2 {[%emt 0:08:56]} Kh8 {[%emt 0:03:17]} 26. c5 {[%emt 0:01:42]} bxc5 {[%emt 0:13:37]} 27. bxc5 {[%emt 0:00:27]} Na5 {[%emt 0:01:07]} 28. c6 {[%emt 0:06:54]} Nxb3 {[%emt 0:00:58]} 29. axb3 {[%emt 0:01:19]} Qa5 {[%emt 0:00:56]} 30. Rfd1 {[%emt 0:02:37]} Qxd5 {[%emt 0:07:58]} 31. Bxe5 {[%emt 0:02:18]} Qxe5 {[%emt 0:00:20]} 32. Qxe5 {[%emt 0:01:18]} Bxe5 {[%emt 0:00:01]} 33. Bxa6 {[%emt 0:00:20]} Rc7 {[%emt 0:00:01]} 34. Bb7 {[%emt 0:03:17]} Re8 {[%emt 0:01:23]} 35. Rc2 {[%emt 0:02:43]} Rb8 {[%emt 0:01:30]} 36. Rd5 {[%emt 0:07:27]} Kg8 {[%emt 0:00:52]} 37. Kf1 {[%emt 0:00:54]} Kf7 {[%emt 0:02:22]} 38. Rb5 {[%emt 0:00:13]} Ke6 {[%emt 0:00:43]} 39. Ke2 {[%emt 0:00:23]} g5 {[%emt 0:01:05]} 40. g4 {[%emt 0:05:52]} h6 {[%emt 0:01:00]} 41. Kd3 {[%emt 0:00:42]} h5 {[%emt 0:02:24]} 42. h3 {[%emt 0:00:22]} hxg4 {[%emt 0:00:22]} 43. hxg4 {[%emt 0:00:06]} Rh8 {[%emt 0:00:03]} 44. Ke4 {[%emt 0:04:14]} Rh1 {[%emt 0:00:34]} 45. Rd5 {[%emt 0:01:34]} Rb1 {[%emt 0:00:19]} 46. Ba6 {[%emt 0:01:18]} Kf6 {[%emt 0:01:31]} 47. Rd3 {[%emt 0:06:38]} Re1 {[%emt 0:01:01]} 48. Kd5 {[%emt 0:03:54]} Ra1 {[%emt 0:01:39]} 49. Bb7 {[%emt 0:02:36]} Ra5+ {[%emt 0:00:19]} 50. Ke4 {[%emt 0:00:06]} Re7 {[%emt 0:02:01]} 51. Rd1 {[%emt 0:00:59]} e2 {[%emt 0:00:18]} 52. Rxe2 {[%emt 0:00:57]} Ba1+ {[%emt 0:00:24]} 53. Kd3 {[%emt 0:01:08]} Rd5+ {[%emt 0:00:30]} 54. Kc4 {[%emt 0:00:17]} Rxd1 {[%emt 0:00:03]} 55. Rh2 {[%emt 0:00:56]} Kg7 {[%emt 0:02:47]} 56. Bc8 {[%emt 0:01:05]} Re5 {[%emt 0:00:53]} 57. Bf5 {[%emt 0:01:27]} Rd4# 0-1

[Event "Tatra Limba Master 2022"]
[Site "Poronin"]
[Date "2022.01.08"]
[Round "4.8"]
[White "Liskiewicz, Jakub"]
[Black "Gajdzica, Maciej"]
[Result "0-1"]
[ECO "D50"]
[WhiteElo "1598"]
[BlackElo "1960"]
[Annotator "ChessBase"]
[PlyCount "60"]
[EventDate "2022.01.07"]
[EventType "swiss"]
[EventCountry "POL"]
[SourceTitle "playchess.com"]
[Source "ChessBase"]
[SourceQuality "1"]
[TimeControl "5400+30"]

1. d4 {[%emt 0:00:05]} d5 {[%emt 0:00:06]} 2. c4 {[%emt 0:00:05]} e6 {[%emt 0:00:07]} 3. Nc3 {[%emt 0:00:08]} Nf6 {[%emt 0:00:08]} 4. Bg5 {[%emt 0:00:08]} dxc4 {[%emt 0:00:07]} 5. e3 {[%emt 0:00:55]} c5 {[%emt 0:00:20]} 6. Bxc4 {[%emt 0:00:27]} cxd4 {[%emt 0:00:11]} 7. exd4 {[%emt 0:00:13]} Be7 {[%emt 0:00:19]} 8. Nf3 {[%emt 0:00:26]} O-O {[%emt 0:00:23]} 9. O-O {[%emt 0:00:11]} Nc6 {[%emt 0:00:50]} 10. Re1 {[%emt 0:03:55]} a6 {[%emt 0:02:00]} 11. a4 {[%emt 0:00:11]} Qb6 {[%emt 0:15:59]} 12. d5 {[%emt 0:13:23]} Qxb2 {[%emt 0:15:03]} 13. dxc6 {[%emt 0:11:39]} Qxc3 {[%emt 0:00:26]} 14. Rc1 {[%emt 0:00:17]} Qa5 {[%emt 0:08:16]} 15. Ne5 {[%emt 0:06:34]} bxc6 {[%emt 0:06:17]} 16. Nxc6 {[%emt 0:00:11]} Qxg5 {[%emt 0:01:16]} 17. Nxe7+ {[%emt 0:00:11]} Kh8 {[%emt 0:00:03]} 18. Nxc8 {[%emt 0:00:20]} Rfxc8 {[%emt 0:00:16]} 19. Bxa6 {[%emt 0:00:16]} Rxc1 {[%emt 0:01:16]} 20. Qxc1 {[%emt 0:00:18]} Qxc1 {[%emt 0:00:11]} 21. Rxc1 {[%emt 0:00:07]} Rxa6 {[%emt 0:00:08]} 22. Rc8+ {[%emt 0:00:52]} Ng8 {[%emt 0:00:06]} 23. Rc4 {[%emt 0:00:13]} g6 {[%emt 0:01:03]} 24. h4 {[%emt 0:00:18]} Nf6 {[%emt 0:00:26]} 25. g4 {[%emt 0:00:57]} h5 {[%emt 0:00:32]} 26. gxh5 {[%emt 0:00:30]} Nxh5 {[%emt 0:00:31]} 27. Kg2 {[%emt 0:00:24]} Nf6 {[%emt 0:00:12]} 28. Kg3 {[%emt 0:00:22]} Ra5 {[%emt 0:00:08]} 29. f4 {[%emt 0:01:04]} Kg7 {[%emt 0:00:20]} 30. Kf3 {[%emt 0:01:13]} Nd5 {[%emt 0:00:42]} 0-1

[Event "Tatra Limba Master 2022"]
[Site "Poronin"]
[Date "2022.01.08"]
[Round "4.9"]
[White "Wysocki, Mateusz"]
[Black "Rejniak, Zuzanna"]
[Result "1/2-1/2"]
[ECO "B90"]
[WhiteElo "1848"]
[BlackElo "1799"]
[Annotator "NA"]
[PlyCount "106"]
[EventDate "2022.01.07"]
[EventType "swiss"]
[EventCountry "POL"]
[SourceTitle "playchess.com"]
[Source "ChessBase"]
[SourceQuality "1"]
[TimeControl "5400+30"]

1. e4 {[%emt 0:00:03]} c5 {[%emt 0:00:05]} 2. Nf3 {[%emt 0:00:19]} d6 {[%emt 0:00:05]} 3. d4 {[%emt 0:00:16]} cxd4 {[%emt 0:00:05]} 4. Nxd4 {[%emt 0:00:06]} Nf6 {[%emt 0:00:07]} 5. Nc3 {[%emt 0:00:06]} a6 {[%emt 0:00:03]} 6. h4 {[%emt 0:01:17]} e5 {[%emt 0:17:32]} 7. Nb3 {[%emt 0:00:45]} Be6 {[%emt 0:05:58]} 8. f4 {[%emt 0:00:35]} exf4 {[%emt 0:00:56]} 9. Bxf4 {[%emt 0:00:08]} Nc6 {[%emt 0:00:04]} 10. Qd2 {[%emt 0:00:28]} Ne5 {[%emt 0:02:51]} 11. O-O-O {[%emt 0:04:31]} Qc7 $14 {[%emt 0:09:36]} 12. Nd4 {[%emt 0:18:03]} Be7 {[%emt 0:05:18]} 13. Nf5 {[%emt 0:04:54]} Bxf5 {[%emt 0:01:47]} 14. exf5 {[%emt 0:00:07]} O-O {[%emt 0:13:55]} 15. Be2 {[%emt 0:06:13]} Rfc8 {[%emt 0:06:14]} 16. g4 {[%emt 0:05:07]} b5 {[%emt 0:03:31]} 17. a3 {[%emt 0:01:09]} Qa5 {[%emt 0:07:07]} 18. g5 {[%emt 0:19:14]} b4 {[%emt 0:00:05]} 19. Na2 {[%emt 0:02:44]} Ne4 {[%emt 0:00:39]} 20. Qe3 {[%emt 0:06:08]} Nc3 {[%emt 0:00:48]} 21. Nxb4 {[%emt 0:03:36]} Nxd1 {[%emt 0:00:30]} 22. Rxd1 {[%emt 0:00:16]} Bf8 {[%emt 0:04:43]} 23. f6 {[%emt 0:02:32]} Re8 {[%emt 0:09:54]} 24. Qf2 {[%emt 0:03:40]} Qc5 {[%emt 0:01:00]} 25. Qg2 {[%emt 0:03:19]} Ng6 {[%emt 0:00:20]} 26. Bd2 {[%emt 0:06:11]} a5 {[%emt 0:01:42]} 27. Nd3 {[%emt 0:00:54]} Qc4 {[%emt 0:01:50]} 28. h5 {[%emt 0:02:31]} Rac8 {[%emt 0:02:55]} 29. Bc3 {[%emt 0:03:22]} Nf4 {[%emt 0:00:04]} 30. Nxf4 {[%emt 0:00:06]} Qxf4+ {[%emt 0:00:02]} 31. Kb1 {[%emt 0:00:41]} Rxc3 {[%emt 0:00:22]} 32. bxc3 {[%emt 0:00:07]} Qe5 {[%emt 0:00:32]} 33. Bc4 {[%emt 0:02:34]} Rb8+ {[%emt 0:00:10]} 34. Ka2 {[%emt 0:02:21]} Qxc3 {[%emt 0:00:13]} 35. Bxf7+ {[%emt 0:00:26]} Kxf7 {[%emt 0:01:10]} 36. g6+ {[%emt 0:02:54]} Kg8 {[%emt 0:01:14]} 37. f7+ {[%emt 0:00:35]} Kh8 {[%emt 0:00:02]} 38. Rb1 {[%emt 0:00:03]} Rxb1 {[%emt 0:00:35]} 39. Kxb1 {[%emt 0:00:02]} Qe1+ {[%emt 0:00:19]} 40. Ka2 {[%emt 0:00:11]} Qe6+ {[%emt 0:00:11]} 41. Kb1 {[%emt 0:00:26]} hxg6 {[%emt 0:02:08]} 42. hxg6 {[%emt 0:00:35]} Qe1+ {[%emt 0:00:03]} 43. Ka2 {[%emt 0:00:41]} Qe6+ {[%emt 0:00:03]} 44. Kb1 {[%emt 0:01:12]} Qe1+ {[%emt 0:00:03]} 45. Kb2 {[%emt 0:00:19]} Qe5+ {[%emt 0:00:02]} 46. c3 {[%emt 0:00:41]} Qb5+ {[%emt 0:00:03]} 47. Kc1 {[%emt 0:00:42]} Qh5 {[%emt 0:00:03]} 48. Kc2 {[%emt 0:00:48]} d5 {[%emt 0:00:20]} 49. Qg3 {[%emt 0:00:30]} Qf5+ {[%emt 0:00:17]} 50. Kb2 {[%emt 0:00:27]} Qh5 {[%emt 0:00:10]} 51. Qb8 {[%emt 0:00:33]} Qe2+ {[%emt 0:00:12]} 52. Kb3 {[%emt 0:00:23]} Qd1+ {[%emt 0:00:02]} 53. Kb2 {[%emt 0:00:24]} Qd2+ {[%emt 0:00:13]} 1/2-1/2

[Event "Tatra Limba Master 2022"]
[Site "Poronin"]
[Date "2022.01.08"]
[Round "4.10"]
[White "Gepfert, Cyprian"]
[Black "Golis, Wiktor"]
[Result "1/2-1/2"]
[ECO "B92"]
[WhiteElo "1743"]
[BlackElo "1553"]
[Annotator "NA"]
[PlyCount "110"]
[EventDate "2022.01.07"]
[EventType "swiss"]
[EventCountry "POL"]
[SourceTitle "playchess.com"]
[Source "ChessBase"]
[SourceQuality "1"]
[TimeControl "5400+30"]

1. e4 {[%emt 0:00:05]} c5 {[%emt 0:00:06]} 2. Nf3 {[%emt 0:00:14]} d6 {[%emt 0:00:07]} 3. Nc3 {[%emt 0:00:31]} Nf6 {[%emt 0:00:09]} 4. d4 {[%emt 0:00:44]} cxd4 {[%emt 0:00:06]} 5. Nxd4 {[%emt 0:00:05]} a6 {[%emt 0:00:06]} 6. Be2 {[%emt 0:00:39]} e5 {[%emt 0:00:08]} 7. Nb3 {[%emt 0:00:04]} Be7 {[%emt 0:00:06]} 8. Bg5 {[%emt 0:00:13]} Be6 {[%emt 0:00:26]} 9. Bxf6 {[%emt 0:02:38]} Bxf6 {[%emt 0:00:09]} 10. Qd3 {[%emt 0:00:11]} Be7 {[%emt 0:00:34]} 11. Nd5 {[%emt 0:00:57]} Bxd5 {[%emt 0:01:07]} 12. Qxd5 {[%emt 0:00:08]} Qc7 {[%emt 0:00:19]} 13. Bg4 {[%emt 0:01:43]} O-O {[%emt 0:07:10]} 14. Rd1 {[%emt 0:00:38]} Nc6 {[%emt 0:02:58]} 15. c3 {[%emt 0:00:26]} Rfd8 {[%emt 0:00:41]} 16. O-O {[%emt 0:00:22]} b5 {[%emt 0:00:29]} 17. Rd3 {[%emt 0:08:39]} Qb6 {[%emt 0:02:02]} 18. Rfd1 {[%emt 0:04:13]} Bf6 {[%emt 0:04:07]} 19. Bh5 {[%emt 0:09:32]} g6 {[%emt 0:01:31]} 20. Rg3 {[%emt 0:07:29]} Ne7 {[%emt 0:03:01]} 21. Qd2 {[%emt 0:11:55]} d5 {[%emt 0:01:01]} 22. Qe2 {[%emt 0:01:44]} Kh8 {[%emt 0:06:08]} 23. Bf3 {[%emt 0:00:43]} dxe4 {[%emt 0:03:05]} 24. Bxe4 {[%emt 0:01:35]} Rxd1+ {[%emt 0:00:52]} 25. Qxd1 {[%emt 0:00:05]} Rd8 {[%emt 0:00:56]} 26. Qe2 {[%emt 0:01:23]} Bh4 {[%emt 0:00:50]} 27. Rd3 {[%emt 0:00:46]} Rxd3 {[%emt 0:06:15]} 28. Bxd3 {[%emt 0:00:16]} Qd6 {[%emt 0:00:17]} 29. g3 {[%emt 0:00:38]} Bg5 {[%emt 0:00:30]} 30. c4 {[%emt 0:05:59]} bxc4 {[%emt 0:04:08]} 31. Bxc4 {[%emt 0:00:17]} f5 {[%emt 0:00:29]} 32. Bxa6 {[%emt 0:08:28]} e4 {[%emt 0:00:44]} 33. Bb5 {[%emt 0:05:24]} Nc6 {[%emt 0:04:19]} 34. Bxc6 {[%emt 0:02:04]} Qxc6 {[%emt 0:00:06]} 35. Na5 {[%emt 0:05:33]} Qa4 {[%emt 0:00:45]} 36. Nb7 {[%emt 0:07:21]} Qxa2 {[%emt 0:01:22]} 37. Qb5 {[%emt 0:00:58]} Qe6 {[%emt 0:01:07]} 38. Nc5 {[%emt 0:02:45]} Qe7 {[%emt 0:00:46]} 39. Qc6 {[%emt 0:01:53]} Qd8 {[%emt 0:02:03]} 40. Qd7 {[%emt 0:02:58]} Qxd7 {[%emt 0:04:49]} 41. Nxd7 {[%emt 0:00:03]} Be7 {[%emt 0:00:12]} 42. h4 {[%emt 0:00:55]} Kg7 {[%emt 0:00:16]} 43. Kf1 {[%emt 0:03:48]} Kf7 {[%emt 0:00:31]} 44. Ke2 {[%emt 0:00:36]} Ke6 {[%emt 0:00:18]} 45. Nb6 {[%emt 0:00:30]} h6 {[%emt 0:02:01]} 46. f3 {[%emt 0:00:57]} Bd6 {[%emt 0:00:23]} 47. g4 {[%emt 0:00:49]} fxg4 {[%emt 0:02:59]} 48. fxg4 {[%emt 0:00:27]} Be7 {[%emt 0:00:46]} 49. h5 {[%emt 0:00:18]} g5 {[%emt 0:00:12]} 50. Nc4 {[%emt 0:00:21]} Kd5 {[%emt 0:00:37]} 51. Ne3+ {[%emt 0:00:15]} Ke5 {[%emt 0:00:06]} 52. Nf5 {[%emt 0:00:12]} Bf8 {[%emt 0:00:05]} 53. Ke3 {[%emt 0:00:52]} Bc5+ {[%emt 0:00:06]} 54. Ke2 {[%emt 0:00:33]} Bf8 {[%emt 0:00:04]} 55. Ke3 {[%emt 0:01:45]} Bc5+ 1/2-1/2

[Event "Tatra Limba Master 2022"]
[Site "Poronin"]
[Date "2022.01.08"]
[Round "4.11"]
[White "Rekuc, Patryk"]
[Black "Smietanska, Wiktoria"]
[Result "0-1"]
[ECO "B51"]
[WhiteElo "1662"]
[BlackElo "1910"]
[Annotator "ChessBase"]
[PlyCount "152"]
[EventDate "2022.01.07"]
[EventType "swiss"]
[EventCountry "POL"]
[SourceTitle "playchess.com"]
[Source "ChessBase"]
[SourceQuality "1"]
[TimeControl "5400+30"]

1. e4 {[%emt 0:00:02]} c5 {[%emt 0:00:05]} 2. Nf3 {[%emt 0:00:04]} d6 {[%emt 0:00:09]} 3. Bb5+ {[%emt 0:00:04]} Nd7 {[%emt 0:00:08]} 4. Ba4 {[%emt 0:00:05]} a6 {[%emt 0:00:07]} 5. c4 {[%emt 0:00:06]} e6 {[%emt 0:00:08]} 6. O-O {[%emt 0:00:19]} Ngf6 {[%emt 0:00:10]} 7. Nc3 {[%emt 0:00:24]} Be7 {[%emt 0:00:08]} 8. d4 {[%emt 0:02:01]} cxd4 {[%emt 0:00:07]} 9. Qxd4 {[%emt 0:00:13]} O-O {[%emt 0:00:07]} 10. Rd1 {[%emt 0:03:44]} Qc7 {[%emt 0:00:30]} 11. Bxd7 {[%emt 0:07:12]} Bxd7 {[%emt 0:00:24]} 12. Bf4 {[%emt 0:08:15]} Bc6 {[%emt 0:17:24]} 13. Bxd6 {[%emt 0:08:03]} Bxd6 {[%emt 0:00:10]} 14. Qxd6 {[%emt 0:00:04]} Qxd6 {[%emt 0:00:12]} 15. Rxd6 {[%emt 0:00:06]} Bxe4 {[%emt 0:00:55]} 16. Rad1 {[%emt 0:01:06]} Bxf3 {[%emt 0:01:04]} 17. gxf3 {[%emt 0:00:09]} Rac8 {[%emt 0:02:06]} 18. Rb6 {[%emt 0:07:27]} Rc7 {[%emt 0:01:29]} 19. b3 {[%emt 0:00:34]} Rfc8 {[%emt 0:01:20]} 20. Ne4 {[%emt 0:00:49]} Kf8 {[%emt 0:02:10]} 21. Kf1 {[%emt 0:03:31]} Ke7 {[%emt 0:00:31]} 22. Nxf6 {[%emt 0:03:58]} Kxf6 {[%emt 0:00:40]} 23. Ke2 {[%emt 0:00:12]} Ke7 {[%emt 0:00:54]} 24. Ke3 {[%emt 0:07:58]} Rd8 {[%emt 0:01:49]} 25. Rxd8 {[%emt 0:00:35]} Kxd8 {[%emt 0:00:07]} 26. c5 {[%emt 0:06:20]} Kc8 {[%emt 0:03:44]} 27. Kd4 {[%emt 0:02:22]} Rd7+ {[%emt 0:02:37]} 28. Ke3 {[%emt 0:00:43]} Kc7 {[%emt 0:00:23]} 29. Rb4 {[%emt 0:00:12]} Rd5 {[%emt 0:01:38]} 30. Rc4 {[%emt 0:00:17]} Rh5 {[%emt 0:00:27]} 31. h4 {[%emt 0:00:09]} Kc6 {[%emt 0:00:07]} 32. Rg4 {[%emt 0:06:45]} g6 {[%emt 0:00:18]} 33. Rf4 {[%emt 0:02:44]} Re5+ {[%emt 0:00:24]} 34. Kd4 {[%emt 0:01:49]} Rd5+ {[%emt 0:00:08]} 35. Ke3 {[%emt 0:00:06]} f5 {[%emt 0:02:20]} 36. b4 {[%emt 0:00:52]} e5 {[%emt 0:00:21]} 37. Rc4 {[%emt 0:00:08]} Kb5 {[%emt 0:00:19]} 38. Rc2 {[%emt 0:01:02]} Rd4 {[%emt 0:02:46]} 39. a3 {[%emt 0:00:23]} Rxh4 {[%emt 0:02:19]} 40. Rd2 {[%emt 0:02:23]} a5 {[%emt 0:03:53]} 41. Rd5 {[%emt 0:02:32]} e4 {[%emt 0:01:00]} 42. f4 {[%emt 0:03:50]} axb4 {[%emt 0:01:44]} 43. axb4 {[%emt 0:00:12]} Rh3+ {[%emt 0:01:30]} 44. Ke2 {[%emt 0:00:25]} Kxb4 {[%emt 0:00:21]} 45. Rd7 {[%emt 0:00:06]} Kxc5 {[%emt 0:00:12]} 46. Rxb7 {[%emt 0:00:06]} Kd6 {[%emt 0:00:21]} 47. Rb5 {[%emt 0:00:12]} Ke6 {[%emt 0:00:12]} 48. Ra5 {[%emt 0:00:14]} Kf6 {[%emt 0:00:11]} 49. Ra7 {[%emt 0:00:14]} h5 {[%emt 0:00:16]} 50. Ra6+ {[%emt 0:00:06]} Kg7 {[%emt 0:00:06]} 51. Ra7+ {[%emt 0:00:10]} Kh6 {[%emt 0:00:04]} 52. Ra1 {[%emt 0:00:52]} Rf3 {[%emt 0:00:12]} 53. Rg1 {[%emt 0:00:07]} Rxf4 {[%emt 0:00:05]} 54. Rg3 {[%emt 0:00:05]} h4 {[%emt 0:00:15]} 55. Rh3 {[%emt 0:00:03]} Kh5 {[%emt 0:00:06]} 56. Kf1 {[%emt 0:00:06]} g5 {[%emt 0:00:10]} 57. Ra3 {[%emt 0:00:04]} Kg4 {[%emt 0:00:18]} 58. Kg2 {[%emt 0:00:19]} h3+ {[%emt 0:00:11]} 59. Kg1 {[%emt 0:00:08]} h2+ {[%emt 0:00:23]} 60. Kh1 {[%emt 0:00:03]} Rf3 {[%emt 0:00:36]} 61. Ra2 {[%emt 0:00:14]} Rb3 {[%emt 0:00:47]} 62. Ra1 {[%emt 0:00:04]} Kf3 {[%emt 0:00:30]} 63. Kxh2 {[%emt 0:00:20]} Kxf2 {[%emt 0:00:41]} 64. Ra2+ {[%emt 0:00:27]} Kf3 {[%emt 0:00:15]} 65. Rg2 {[%emt 0:00:06]} Kf4 {[%emt 0:00:53]} 66. Rf2+ {[%emt 0:00:07]} Ke5 {[%emt 0:00:08]} 67. Kg2 {[%emt 0:00:02]} f4 {[%emt 0:00:05]} 68. Rc2 {[%emt 0:00:04]} Kf5 {[%emt 0:00:19]} 69. Rf2 {[%emt 0:00:08]} g4 {[%emt 0:00:09]} 70. Kg1 {[%emt 0:00:08]} g3 {[%emt 0:00:11]} 71. Rc2 {[%emt 0:00:06]} Kg4 {[%emt 0:00:13]} 72. Rc1 {[%emt 0:00:08]} e3 {[%emt 0:00:38]} 73. Rf1 {[%emt 0:00:05]} e2 {[%emt 0:00:30]} 74. Re1 {[%emt 0:00:05]} Rd3 {[%emt 0:00:09]} 75. Kh1 {[%emt 0:00:23]} Rd1 {[%emt 0:00:15]} 76. Kg2 {[%emt 0:00:03]} f3+ {[%emt 0:00:04]} 0-1

[Event "Tatra Limba Master 2022"]
[Site "Poronin"]
[Date "2022.01.08"]
[Round "5.7"]
[White "Rejniak, Zuzanna"]
[Black "Reichel, Lukasz"]
[Result "1/2-1/2"]
[ECO "B52"]
[WhiteElo "1799"]
[BlackElo "1748"]
[Annotator "NA RC"]
[PlyCount "33"]
[EventDate "2022.01.07"]
[EventType "swiss"]
[EventCountry "POL"]
[SourceTitle "playchess.com"]
[Source "ChessBase"]
[SourceQuality "1"]
[TimeControl "5400+30"]

1. e4 {[%emt 0:00:01]} c5 {[%emt 0:00:11]} 2. Nf3 {[%emt 0:00:05]} d6 {[%emt 0:00:05]} 3. Bb5+ {[%emt 0:00:04]} Bd7 {[%emt 0:00:07]} 4. Bxd7+ {[%emt 0:00:05]} Qxd7 {[%emt 0:00:05]} 5. O-O {[%emt 0:00:08]} Nc6 {[%emt 0:00:51]} 6. c3 {[%emt 0:00:41]} Nf6 {[%emt 0:00:28]} 7. Re1 {[%emt 0:00:05]} e6 {[%emt 0:01:04]} 8. d4 {[%emt 0:00:12]} cxd4 {[%emt 0:00:08]} 9. cxd4 {[%emt 0:00:04]} d5 {[%emt 0:00:11]} 10. e5 {[%emt 0:00:03]} Ne4 {[%emt 0:00:08]} 11. Nbd2 {[%emt 0:00:04]} Nxd2 {[%emt 0:00:27]} 12. Bxd2 {[%emt 0:00:04]} Be7 {[%emt 0:00:50]} 13. Rc1 {[%emt 0:00:05]} O-O {[%emt 0:01:27]} 14. a3 {[%emt 0:00:12]} a5 {[%emt 0:03:53]} 15. Rc3 {[%emt 0:10:48]} a4 {[%emt 0:11:31]} 16. Qb1 {[%emt 0:15:26]} h6 17. Rec1 1/2-1/2

[Event "Tatra Limba Master 2022"]
[Site "Poronin"]
[Date "2022.01.08"]
[Round "5.9"]
[White "Kotowicz, Kamil"]
[Black "Mroz, Lena"]
[Result "1/2-1/2"]
[ECO "A80"]
[WhiteElo "1732"]
[BlackElo "1835"]
[Annotator "NA RC"]
[PlyCount "33"]
[EventDate "2022.01.07"]
[EventType "swiss"]
[EventCountry "POL"]
[SourceTitle "playchess.com"]
[Source "ChessBase"]
[SourceQuality "1"]
[TimeControl "5400+30"]

1. d4 {[%emt 0:00:16]} f5 {[%emt 0:00:06]} 2. Bg5 {[%emt 0:00:25]} h6 {[%emt 0:00:15]} 3. Bh4 {[%emt 0:00:05]} g5 {[%emt 0:00:07]} 4. Bg3 {[%emt 0:00:04]} Nf6 {[%emt 0:00:15]} 5. e3 {[%emt 0:00:09]} e6 {[%emt 0:00:35]} 6. Nf3 {[%emt 0:01:14]} d6 {[%emt 0:02:29]} 7. Nc3 {[%emt 0:01:43]} Qe7 {[%emt 0:01:54]} 8. Bc4 {[%emt 0:03:09]} Nc6 {[%emt 0:02:57]} 9. Qd2 {[%emt 0:05:09]} Bd7 {[%emt 0:03:54]} 10. O-O-O {[%emt 0:00:35]} O-O-O {[%emt 0:01:03]} 11. d5 {[%emt 0:04:59]} exd5 {[%emt 0:06:02]} 12. Nxd5 {[%emt 0:00:16]} Nxd5 {[%emt 0:00:45]} 13. Bxd5 {[%emt 0:01:01]} Bg7 {[%emt 0:01:53]} 14. Rhe1 {[%emt 0:03:41]} Qf6 {[%emt 0:04:25]} 15. c3 {[%emt 0:01:31]} Kb8 {[%emt 0:01:35]} 16. h3 {[%emt 0:03:56]} Ne7 {[%emt 0:09:45]} 17. Bb3 {[%emt 0:02:00]} 1/2-1/2